[Event "Early-Titled-Tuesday-Blitz-May-14-2024"]
[Site "Chess.com"]
[Date "2024.05.14"]
[Round "2"]
[White "cukus"]
[Black "GelmanAlexander"]
[Result "0-1"]
[WhiteElo "2378"]
[BlackElo "2650"]
[TimeControl "180+1"]
[EndTime "8:20:17 PDT"]
[Termination "GelmanAlexander won by resignation"]

1. e4 {[%clk 0:03:00.9]} 1... c5 {[%clk 0:02:57.9]} 2. Nf3 {[%clk 0:03:00.6]}
2... e6 {[%clk 0:02:58.1]} 3. b3 {[%clk 0:03:00.5]} 3... a6 {[%clk 0:02:58]} 4.
c4 {[%clk 0:03:00.2]} 4... d6 {[%clk 0:02:57.9]} 5. Bb2 {[%clk 0:03:00.1]} 5...
Nf6 {[%clk 0:02:57.5]} 6. Nc3 {[%clk 0:02:56.5]} 6... b6 {[%clk 0:02:57]} 7. d4
{[%clk 0:02:49.4]} 7... cxd4 {[%clk 0:02:56.9]} 8. Nxd4 {[%clk 0:02:49.4]} 8...
Bb7 {[%clk 0:02:57.4]} 9. Qe2 {[%clk 0:02:45.8]} 9... Nbd7 {[%clk 0:02:57.7]}
10. g3 {[%clk 0:02:43.4]} 10... h5 {[%clk 0:02:53.4]} 11. h4 {[%clk 0:02:42.9]}
11... Be7 {[%clk 0:02:51.6]} 12. Bg2 {[%clk 0:02:42.8]} 12... Ne5 {[%clk
0:02:51]} 13. O-O {[%clk 0:02:39.7]} 13... Qc7 {[%clk 0:02:50.4]} 14. Rfd1
{[%clk 0:02:33.3]} 14... O-O {[%clk 0:02:49.1]} 15. Rac1 {[%clk 0:02:29.5]}
15... Rac8 {[%clk 0:02:48.6]} 16. Ba3 {[%clk 0:02:26.3]} 16... Rfd8 {[%clk
0:02:48.1]} 17. Nf3 {[%clk 0:02:21.4]} 17... Neg4 {[%clk 0:02:44.3]} 18. Ng5
{[%clk 0:02:19]} 18... Bf8 {[%clk 0:02:34.9]} 19. Rc2 {[%clk 0:01:57.1]} 19...
Qb8 {[%clk 0:02:33.8]} 20. Rcd2 {[%clk 0:01:55.7]} 20... Ba8 {[%clk 0:02:29.4]}
21. Rd3 {[%clk 0:01:45.7]} 21... b5 {[%clk 0:02:27]} 22. cxb5 {[%clk 0:01:40.2]}
22... axb5 {[%clk 0:02:27.1]} 23. Bb4 {[%clk 0:01:34]} 23... Qb6 {[%clk
0:01:33]} 24. R3d2 {[%clk 0:01:27.5]} 24... Rb8 {[%clk 0:01:27.1]} 25. Nh3
{[%clk 0:01:13.8]} 25... Bc6 {[%clk 0:01:07.6]} 26. Nf4 {[%clk 0:01:13]} 26...
Be8 {[%clk 0:01:02.3]} 27. Nxh5 {[%clk 0:01:03.8]} 27... Nxh5 {[%clk 0:00:48.3]}
28. Qxg4 {[%clk 0:01:03.8]} 28... Nf6 {[%clk 0:00:49.2]} 29. Qe2 {[%clk
0:01:03.6]} 29... Rbc8 {[%clk 0:00:47.1]} 30. Qf3 {[%clk 0:00:49.8]} 30... Bc6
{[%clk 0:00:43.7]} 31. Qd3 {[%clk 0:00:44.3]} 31... d5 {[%clk 0:00:38.1]} 32.
Bxf8 {[%clk 0:00:41.4]} 32... Kxf8 {[%clk 0:00:36.6]} 33. exd5 {[%clk
0:00:39.7]} 33... exd5 {[%clk 0:00:35.9]} 34. Qf5 {[%clk 0:00:37.2]} 34... Bd7
{[%clk 0:00:30.9]} 35. Qf3 {[%clk 0:00:36.8]} 35... Be6 {[%clk 0:00:29.8]} 36.
Ne2 {[%clk 0:00:32.2]} 36... Bg4 {[%clk 0:00:29.2]} 37. Qd3 {[%clk 0:00:30]}
37... Re8 {[%clk 0:00:26.4]} 38. Bf3 {[%clk 0:00:28.4]} 38... Ne4 {[%clk
0:00:23.3]} 39. Qd4 {[%clk 0:00:15.3]} 39... Qxd4 {[%clk 0:00:19.3]} 40. Nxd4
{[%clk 0:00:16.2]} 40... Bxf3 {[%clk 0:00:17.1]} 41. Nxf3 {[%clk 0:00:15.7]}
41... Nxd2 {[%clk 0:00:18]} 42. Rxd2 {[%clk 0:00:16.1]} 42... Ra8 {[%clk
0:00:16.4]} 43. Nd4 {[%clk 0:00:15.1]} 43... b4 {[%clk 0:00:16.9]} 44. Nc6
{[%clk 0:00:15.1]} 44... Re1+ {[%clk 0:00:15.6]} 45. Kg2 {[%clk 0:00:15.1]}
45... Re4 {[%clk 0:00:15.6]} 46. f3 {[%clk 0:00:13.6]} 46... Re6 {[%clk
0:00:12.6]} 47. Nxb4 {[%clk 0:00:14]} 47... d4 {[%clk 0:00:11.6]} 48. Nd5 {[%clk
0:00:13]} 48... Rea6 {[%clk 0:00:10.3]} 49. Rxd4 {[%clk 0:00:11.2]} 49... Rxa2+
{[%clk 0:00:10.2]} 50. Kh3 {[%clk 0:00:11.9]} 50... Rf2 {[%clk 0:00:09.4]} 51.
Kg4 {[%clk 0:00:10.8]} 51... g6 {[%clk 0:00:09.1]} 52. Nf6 {[%clk 0:00:09.8]}
52... Kg7 {[%clk 0:00:09.4]} 53. Nd7 {[%clk 0:00:07.9]} 53... Ra5 {[%clk
0:00:08.3]} 54. b4 {[%clk 0:00:06.4]} 54... Rb5 {[%clk 0:00:08.3]} 55. Nc5
{[%clk 0:00:05.7]} 55... Rb2 {[%clk 0:00:07.1]} 56. Nd3 {[%clk 0:00:06.2]} 56...
Rb3 {[%clk 0:00:07.1]} 57. Kf4 {[%clk 0:00:04.7]} 57... Rb6 {[%clk 0:00:05.7]}
58. Ke4 {[%clk 0:00:05.1]} 58... Re6+ {[%clk 0:00:05.7]} 59. Kf4 {[%clk
0:00:05.8]} 59... Rb1 {[%clk 0:00:05.9]} 60. Kg4 {[%clk 0:00:04.3]} 60... Rg1
{[%clk 0:00:05.6]} 61. Kf4 {[%clk 0:00:04.5]} 61... f6 {[%clk 0:00:05.5]} 62.
Kg4 {[%clk 0:00:05]} 62... f5+ {[%clk 0:00:05.7]} 63. Kf4 {[%clk 0:00:05.2]}
63... Rb1 {[%clk 0:00:05.9]} 64. Rd7+ {[%clk 0:00:05.1]} 64... Kf6 {[%clk
0:00:06.1]} 65. Rd4 {[%clk 0:00:05.8]} 65... Rbe1 {[%clk 0:00:05.8]} 66. g4
{[%clk 0:00:05.5]} 66... R1e3 {[%clk 0:00:04.3]} 67. g5+ {[%clk 0:00:04.7]}
67... Kf7 {[%clk 0:00:04.3]} 68. Rd7+ {[%clk 0:00:04.8]} 68... Re7 {[%clk
0:00:04.8]} 69. Rd4 {[%clk 0:00:05.3]} 69... Re2 {[%clk 0:00:04.3]} 70. Rd5
{[%clk 0:00:04.8]} 70... Rh2 {[%clk 0:00:04.3]} 71. Ne5+ {[%clk 0:00:05.2]}
71... Kg7 {[%clk 0:00:04.6]} 72. Rd7 {[%clk 0:00:03.5]} 72... Rxh4+ {[%clk
0:00:03.2]} 73. Ke3 {[%clk 0:00:03.9]} 73... Rxd7 {[%clk 0:00:04.1]} 74. Nxd7
{[%clk 0:00:04.4]} 74... Rxb4 {[%clk 0:00:04.9]} 75. f4 {[%clk 0:00:04.8]} 75...
Re4+ {[%clk 0:00:04.7]} 76. Kf3 {[%clk 0:00:05]} 76... Kf7 {[%clk 0:00:05.3]}
77. Ne5+ {[%clk 0:00:05.9]} 77... Rxe5 {[%clk 0:00:05.4]} 78. fxe5 {[%clk
0:00:06.1]} 78... Ke6 {[%clk 0:00:06.3]} 79. Kf4 {[%clk 0:00:07]} 79... Kd5
{[%clk 0:00:06.9]} 80. Kf3 {[%clk 0:00:02.3]} 80... Kxe5 {[%clk 0:00:07.2]} 81.
Ke3 {[%clk 0:00:03.2]} 81... f4+ {[%clk 0:00:07.6]} 82. Kf3 {[%clk 0:00:01.9]}
82... Kf5 {[%clk 0:00:08.5]} 83. Kf2 {[%clk 0:00:02.6]} 83... Kxg5 {[%clk
0:00:08.6]} 84. Kf3 {[%clk 0:00:03.5]} 84... Kf5 {[%clk 0:00:09.1]} 85. Kg2
{[%clk 0:00:03.5]} 85... g5 {[%clk 0:00:09.6]} 86. Kf2 {[%clk 0:00:04.4]} 86...
g4 {[%clk 0:00:10.1]} 87. Kg2 {[%clk 0:00:05.2]} 87... Ke4 {[%clk 0:00:10.6]}
88. Kf1 {[%clk 0:00:06.1]} 88... g3 {[%clk 0:00:11.1]} 89. Kg1 {[%clk
0:00:06.6]} 89... f3 {[%clk 0:00:11.6]} 90. Kf1 {[%clk 0:00:07.2]} 90... Ke3
{[%clk 0:00:11.8]} 91. Kg1 {[%clk 0:00:07.3]} 91... g2 {[%clk 0:00:11.7]} 92.
Kh2 {[%clk 0:00:07.6]} 92... Kf2 {[%clk 0:00:12.1]} 93. Kh3 {[%clk 0:00:07.5]}
93... g1=Q {[%clk 0:00:12.7]} 0-1

[Event "Early-Titled-Tuesday-Blitz-May-14-2024"]
[Site "Chess.com"]
[Date "2024.05.14"]
[Round "2"]
[White "ural58"]
[Black "Mihajlovskij"]
[Result "0-1"]
[WhiteElo "2485"]
[BlackElo "2231"]
[TimeControl "180+1"]
[EndTime "8:20:18 PDT"]
[Termination "Mihajlovskij won on time"]

1. e4 {[%clk 0:02:28]} 1... c6 {[%clk 0:02:58.8]} 2. Nc3 {[%clk 0:02:26.7]} 2...
d5 {[%clk 0:02:56.2]} 3. Nf3 {[%clk 0:02:26.7]} 3... dxe4 {[%clk 0:02:54.3]} 4.
Nxe4 {[%clk 0:02:26.2]} 4... Nf6 {[%clk 0:02:55.2]} 5. Qe2 {[%clk 0:02:25.9]}
5... Nxe4 {[%clk 0:02:45.9]} 6. Qxe4 {[%clk 0:02:25.1]} 6... Qd5 {[%clk
0:02:46.8]} 7. Qf4 {[%clk 0:02:18.7]} 7... Qf5 {[%clk 0:02:45.9]} 8. Qe3 {[%clk
0:02:16.9]} 8... Qxc2 {[%clk 0:02:33.7]} 9. Bd3 {[%clk 0:02:16.4]} 9... Qa4
{[%clk 0:02:34.2]} 10. O-O {[%clk 0:02:14]} 10... Na6 {[%clk 0:02:30.8]} 11. b3
{[%clk 0:02:13]} 11... Qa5 {[%clk 0:02:28]} 12. Bb2 {[%clk 0:02:12]} 12... Qb6
{[%clk 0:02:24]} 13. Bd4 {[%clk 0:02:04.3]} 13... c5 {[%clk 0:02:20]} 14. Bc3
{[%clk 0:01:52.5]} 14... e6 {[%clk 0:02:12.1]} 15. Rac1 {[%clk 0:01:44.8]} 15...
Bd7 {[%clk 0:02:09.4]} 16. Ne5 {[%clk 0:01:42.8]} 16... Nb4 {[%clk 0:02:04]} 17.
Nxd7 {[%clk 0:01:36]} 17... Kxd7 {[%clk 0:02:01.5]} 18. Be4 {[%clk 0:01:13.9]}
18... Nc6 {[%clk 0:01:52]} 19. Qf3 {[%clk 0:01:00.9]} 19... Ke8 {[%clk
0:01:51.9]} 20. Rfe1 {[%clk 0:00:51]} 20... Rd8 {[%clk 0:01:44.1]} 21. Qg3
{[%clk 0:00:49.6]} 21... Rd7 {[%clk 0:01:23.5]} 22. h4 {[%clk 0:00:45.3]} 22...
Qd8 {[%clk 0:01:20.4]} 23. h5 {[%clk 0:00:44.4]} 23... Nd4 {[%clk 0:01:19.1]}
24. h6 {[%clk 0:00:34.3]} 24... gxh6 {[%clk 0:01:18.9]} 25. Bxd4 {[%clk
0:00:29.6]} 25... cxd4 {[%clk 0:01:14.2]} 26. Qe5 {[%clk 0:00:27.2]} 26... Rg8
{[%clk 0:01:13.5]} 27. Rc4 {[%clk 0:00:26.6]} 27... Bd6 {[%clk 0:01:10.7]} 28.
Qb5 {[%clk 0:00:25.2]} 28... a6 {[%clk 0:01:09]} 29. Qh5 {[%clk 0:00:12.7]}
29... Qg5 {[%clk 0:01:06.8]} 30. Qxg5 {[%clk 0:00:10.9]} 30... Rxg5 {[%clk
0:01:06]} 31. Bxh7 {[%clk 0:00:10.9]} 31... b5 {[%clk 0:01:03.1]} 32. Rc6 {[%clk
0:00:08.9]} 32... a5 {[%clk 0:01:00.6]} 33. Be4 {[%clk 0:00:08.7]} 33... Bb4
{[%clk 0:01:00.1]} 34. Re2 {[%clk 0:00:06.9]} 34... Kd8 {[%clk 0:00:57.1]} 35.
d3 {[%clk 0:00:06.4]} 35... Re5 {[%clk 0:00:56.1]} 36. Rec2 {[%clk 0:00:06.1]}
36... f5 {[%clk 0:00:55.1]} 37. Bf3 {[%clk 0:00:05.6]} 37... Bd6 {[%clk
0:00:52.4]} 38. g3 {[%clk 0:00:05.1]} 38... Re1+ {[%clk 0:00:52.2]} 39. Kg2
{[%clk 0:00:05.3]} 39... a4 {[%clk 0:00:52.3]} 40. Rb6 {[%clk 0:00:04.8]} 40...
axb3 {[%clk 0:00:48]} 41. axb3 {[%clk 0:00:04.8]} 41... b4 {[%clk 0:00:40.1]}
42. Bc6 {[%clk 0:00:04.4]} 42... Rc7 {[%clk 0:00:37.5]} 43. Rc4 {[%clk
0:00:04.7]} 43... e5 {[%clk 0:00:36.8]} 44. Bd5 {[%clk 0:00:04]} 44... Rxc4
{[%clk 0:00:34.4]} 45. Bxc4 {[%clk 0:00:04.2]} 45... Kc7 {[%clk 0:00:34.2]} 46.
Ra6 {[%clk 0:00:04]} 46... f4 {[%clk 0:00:31.8]} 47. gxf4 {[%clk 0:00:03.2]}
47... exf4 {[%clk 0:00:31.7]} 48. Kf3 {[%clk 0:00:03.6]} 48... Rh1 {[%clk
0:00:28.8]} 49. Ra7+ {[%clk 0:00:03.9]} 49... Kb6 {[%clk 0:00:28.8]} 50. Rh7
{[%clk 0:00:03.8]} 50... Kc6 {[%clk 0:00:23.8]} 51. Ke4 {[%clk 0:00:03.9]} 51...
Re1+ {[%clk 0:00:20.6]} 52. Kf3 {[%clk 0:00:03.1]} 52... Rh1 {[%clk 0:00:18.8]}
53. Ke4 {[%clk 0:00:03.4]} 53... Rh5 {[%clk 0:00:18.7]} 54. Kf3 {[%clk
0:00:02.2]} 54... Rh3+ {[%clk 0:00:18.6]} 55. Ke4 {[%clk 0:00:01.5]} 55... Rh5
{[%clk 0:00:13.1]} 56. Rh8 {[%clk 0:00:01.3]} 56... Re5+ {[%clk 0:00:12.9]} 57.
Kf3 {[%clk 0:00:01.5]} 57... Rh5 {[%clk 0:00:13.1]} 58. Ke4 {[%clk 0:00:01.7]}
58... Kd7 {[%clk 0:00:13]} 59. Rh7+ {[%clk 0:00:00.8]} 59... Ke8 {[%clk
0:00:12.5]} 60. Kf3 {[%clk 0:00:01.1]} 60... Kf8 {[%clk 0:00:10.5]} 61. Ke4
{[%clk 0:00:02]} 61... Be5 {[%clk 0:00:08.1]} 62. Kf3 {[%clk 0:00:02.9]} 62...
Rg5 {[%clk 0:00:08]} 63. Rf7+ {[%clk 0:00:03.6]} 63... Ke8 {[%clk 0:00:08]} 64.
Ke4 {[%clk 0:00:04.2]} 64... Bg7 {[%clk 0:00:06.1]} 65. Ra7 {[%clk 0:00:02.9]}
65... Be5 {[%clk 0:00:05.6]} 66. Kf3 {[%clk 0:00:03.1]} 66... Bd6 {[%clk
0:00:05.6]} 67. Rh7 {[%clk 0:00:02.8]} 67... Kd8 {[%clk 0:00:05.5]} 68. Ke4
{[%clk 0:00:03.3]} 68... Be7 {[%clk 0:00:04.6]} 69. Rxh6 {[%clk 0:00:02.6]}
69... Rg2 {[%clk 0:00:03.7]} 70. Kxd4 {[%clk 0:00:02.3]} 70... Rxf2 {[%clk
0:00:03.9]} 71. Rh8+ {[%clk 0:00:02.9]} 71... Kc7 {[%clk 0:00:03.9]} 72. Ke4
{[%clk 0:00:03.6]} 72... Bd6 {[%clk 0:00:03.3]} 73. d4 {[%clk 0:00:03.7]} 73...
Kb6 {[%clk 0:00:03.9]} 74. Rh7 {[%clk 0:00:02.6]} 74... Rd2 {[%clk 0:00:01.4]}
75. Kd5 {[%clk 0:00:01.9]} 75... Bc7 {[%clk 0:00:01.8]} 76. Rh6+ {[%clk
0:00:01.9]} 76... Kb7 {[%clk 0:00:02.3]} 77. Bb5 {[%clk 0:00:01.2]} 77... Bb6
{[%clk 0:00:01.5]} 0-1

[Event "Early-Titled-Tuesday-Blitz-May-14-2024"]
[Site "Chess.com"]
[Date "2024.05.14"]
[Round "2"]
[White "ahkashefi2800"]
[Black "crescentmoon2411"]
[Result "1/2-1/2"]
[WhiteElo "2593"]
[BlackElo "2838"]
[TimeControl "180+1"]
[EndTime "8:20:42 PDT"]
[Termination "Game drawn by repetition"]

1. d4 {[%clk 0:02:56.8]} 1... d5 {[%clk 0:02:59.7]} 2. c4 {[%clk 0:02:56.2]}
2... e6 {[%clk 0:03:00.2]} 3. Nc3 {[%clk 0:02:55.1]} 3... a6 {[%clk 0:03:00.4]}
4. cxd5 {[%clk 0:02:55.4]} 4... exd5 {[%clk 0:03:01.3]} 5. Qc2 {[%clk
0:02:55.7]} 5... c6 {[%clk 0:02:56.7]} 6. Bf4 {[%clk 0:02:55.3]} 6... Bd6 {[%clk
0:02:48]} 7. Bxd6 {[%clk 0:02:47.3]} 7... Qxd6 {[%clk 0:02:48.9]} 8. e3 {[%clk
0:02:48.2]} 8... Ne7 {[%clk 0:02:43.9]} 9. Bd3 {[%clk 0:02:44.5]} 9... g6 {[%clk
0:02:41.8]} 10. Nf3 {[%clk 0:02:42.3]} 10... Bf5 {[%clk 0:02:41.4]} 11. O-O
{[%clk 0:02:41.4]} 11... Nd7 {[%clk 0:02:38.5]} 12. b4 {[%clk 0:02:39.3]} 12...
O-O {[%clk 0:02:30.3]} 13. a4 {[%clk 0:02:38.7]} 13... b5 {[%clk 0:02:14.6]} 14.
Rfb1 {[%clk 0:02:34.5]} 14... Nb6 {[%clk 0:02:11.9]} 15. Ne5 {[%clk 0:02:19.7]}
15... Nc4 {[%clk 0:02:06.8]} 16. Bxf5 {[%clk 0:02:13.1]} 16... Nxf5 {[%clk
0:02:07.7]} 17. Nd3 {[%clk 0:02:13.4]} 17... h5 {[%clk 0:01:33.5]} 18. Nc5
{[%clk 0:02:08.7]} 18... h4 {[%clk 0:01:32.7]} 19. h3 {[%clk 0:02:07.3]} 19...
Qe7 {[%clk 0:01:31.2]} 20. Re1 {[%clk 0:01:57.7]} 20... Kg7 {[%clk 0:01:28.5]}
21. Re2 {[%clk 0:01:36.8]} 21... Rfe8 {[%clk 0:01:27.7]} 22. Rae1 {[%clk
0:01:36.2]} 22... Qg5 {[%clk 0:01:22]} 23. Qd3 {[%clk 0:01:26.9]} 23... Nfd6
{[%clk 0:01:05.6]} 24. e4 {[%clk 0:01:12.7]} 24... dxe4 {[%clk 0:00:57.4]} 25.
N5xe4 {[%clk 0:01:13]} 25... Nxe4 {[%clk 0:00:56.2]} 26. Rxe4 {[%clk 0:01:13.9]}
26... Rxe4 {[%clk 0:00:46.7]} 27. Qxe4 {[%clk 0:01:11.3]} 27... Qd2 {[%clk
0:00:37.4]} 28. axb5 {[%clk 0:00:26.3]} 28... axb5 {[%clk 0:00:38]} 29. Nb1
{[%clk 0:00:13.6]} 29... Qxb4 {[%clk 0:00:37.6]} 30. Rf1 {[%clk 0:00:03.6]}
30... Qd6 {[%clk 0:00:23.6]} 31. Qxh4 {[%clk 0:00:03.2]} 31... Rd8 {[%clk
0:00:21.7]} 32. Rd1 {[%clk 0:00:03.3]} 32... Qf6 {[%clk 0:00:17.2]} 33. Qxf6+
{[%clk 0:00:03.1]} 33... Kxf6 {[%clk 0:00:18.1]} 34. Nc3 {[%clk 0:00:03.3]}
34... Kg7 {[%clk 0:00:11.9]} 35. Ne4 {[%clk 0:00:03.6]} 35... b4 {[%clk
0:00:04.1]} 36. Nc5 {[%clk 0:00:03.8]} 36... Na3 {[%clk 0:00:03.3]} 37. Nb3
{[%clk 0:00:03.6]} 37... Nb5 {[%clk 0:00:02.8]} 38. Rd2 {[%clk 0:00:03.6]} 38...
Nc3 {[%clk 0:00:03.1]} 39. f3 {[%clk 0:00:03]} 39... Ra8 {[%clk 0:00:03.6]} 40.
Kf2 {[%clk 0:00:03.1]} 40... Ra3 {[%clk 0:00:03.9]} 41. Nc5 {[%clk 0:00:03.5]}
41... Nb5 {[%clk 0:00:03.6]} 42. Rb2 {[%clk 0:00:03.1]} 42... Nxd4 {[%clk
0:00:02.6]} 43. Rxb4 {[%clk 0:00:03.2]} 43... Ra2+ {[%clk 0:00:03.5]} 44. Kf1
{[%clk 0:00:02.5]} 44... Nf5 {[%clk 0:00:04.2]} 45. Rb3 {[%clk 0:00:02.6]} 45...
Ng3+ {[%clk 0:00:04.3]} 46. Kg1 {[%clk 0:00:02.5]} 46... Nf5 {[%clk 0:00:04.6]}
47. Kf1 {[%clk 0:00:02.3]} 47... Nh4 {[%clk 0:00:04.6]} 48. g4 {[%clk
0:00:02.7]} 48... Rh2 {[%clk 0:00:04.6]} 49. f4 {[%clk 0:00:03.1]} 49... Rh1+
{[%clk 0:00:04]} 50. Kf2 {[%clk 0:00:03]} 50... f6 {[%clk 0:00:04.4]} 51. Kg3
{[%clk 0:00:03.1]} 51... g5 {[%clk 0:00:04.7]} 52. fxg5 {[%clk 0:00:04]} 52...
fxg5 {[%clk 0:00:05.6]} 53. Rc3 {[%clk 0:00:02.4]} 53... Rg1+ {[%clk 0:00:05.4]}
54. Kf2 {[%clk 0:00:02.5]} 54... Rg2+ {[%clk 0:00:05.8]} 55. Kf1 {[%clk
0:00:02.9]} 55... Ra2 {[%clk 0:00:05.3]} 56. Ne6+ {[%clk 0:00:02.8]} 56... Kf6
{[%clk 0:00:05.3]} 57. Rxc6 {[%clk 0:00:03.4]} 57... Ra1+ {[%clk 0:00:05.4]} 58.
Kf2 {[%clk 0:00:03.5]} 58... Ra2+ {[%clk 0:00:06]} 59. Kf1 {[%clk 0:00:03]}
59... Ra1+ {[%clk 0:00:04]} 60. Ke2 {[%clk 0:00:03.4]} 60... Ra3 {[%clk
0:00:03.6]} 61. Nd4+ {[%clk 0:00:02.4]} 61... Ke5 {[%clk 0:00:04.1]} 62. Nc2
{[%clk 0:00:02.3]} 62... Rxh3 {[%clk 0:00:04.4]} 63. Rc5+ {[%clk 0:00:02.6]}
63... Kf6 {[%clk 0:00:04.2]} 64. Nd4 {[%clk 0:00:02.7]} 64... Rh2+ {[%clk
0:00:02.9]} 65. Ke3 {[%clk 0:00:02.6]} 65... Rh1 {[%clk 0:00:03.3]} 66. Ke4
{[%clk 0:00:02.8]} 66... Re1+ {[%clk 0:00:03.2]} 67. Kd3 {[%clk 0:00:03.2]}
67... Rd1+ {[%clk 0:00:03.4]} 68. Ke4 {[%clk 0:00:03.4]} 68... Re1+ {[%clk
0:00:04.1]} 69. Kd3 {[%clk 0:00:03.2]} 69... Re8 {[%clk 0:00:03.9]} 70. Rc6+
{[%clk 0:00:03.2]} 70... Ke5 {[%clk 0:00:03.9]} 71. Ne2 {[%clk 0:00:02.5]} 71...
Rd8+ {[%clk 0:00:03.9]} 72. Ke3 {[%clk 0:00:02.7]} 72... Re8 {[%clk 0:00:04]}
73. Rc3 {[%clk 0:00:02.4]} 73... Kd5+ {[%clk 0:00:04]} 74. Kf2 {[%clk
0:00:02.7]} 74... Rf8+ {[%clk 0:00:04]} 75. Kg1 {[%clk 0:00:01.8]} 75... Ke4
{[%clk 0:00:04.3]} 76. Ng3+ {[%clk 0:00:01.5]} 76... Kf4 {[%clk 0:00:04.9]} 77.
Nh5+ {[%clk 0:00:01.2]} 77... Kxg4 {[%clk 0:00:04.9]} 78. Ng7 {[%clk 0:00:01.8]}
78... Rf4 {[%clk 0:00:04.3]} 79. Rb3 {[%clk 0:00:01.4]} 79... Re4 {[%clk
0:00:04.4]} 80. Kf2 {[%clk 0:00:01.4]} 80... Rf4+ {[%clk 0:00:04.5]} 81. Kg1
{[%clk 0:00:01.6]} 81... Nf3+ {[%clk 0:00:04.8]} 82. Kg2 {[%clk 0:00:01.8]}
82... Nh4+ {[%clk 0:00:05.1]} 83. Kg1 {[%clk 0:00:02.3]} 1/2-1/2